Workbook

Sheet Dashboard
O3: 2018
O4: MARZO | GA4: Empresa - Sector | GB4: Empresa - Sector
C5: Acumulado a: | D5: =O4 -> MARZO | G5: Datos acumulados | I5: Cuota Negocio / Total ASEMPLEO | L5: =empresa_ccaa!L5 -> iEMPRESA | N5: ¿▲"sin" mi Empresa? | GB5: p.p.
C6: Total | D6: Facturación, € | F6: (a) | G6: =L5 -> iEMPRESA | K6: Cuota de Facturación | L6: ∆ | N6: (b) | O6: ∆ (a-b) | GB6: Puntos porcentuales
D7: 2017 | E7: 2018 | F7: % i.a. | G7: =D7 -> 2017 | H7: =E7 -> 2018 | I7: % i.a. | J7: =G7 -> 2017 | K7: =H7 -> 2018 | L7: Dif.P.P. | N7: % i.a. | O7: Dif.P.P. | GA7: Dif. Ritmo | GB7: Importancia Relativa | GE7: Empresa
C8: Nacional | D8: =empresa_ccaa!F12 -> 810206562.5 | E8: =empresa_ccaa!G12 -> 919563117.9 | F8: =((E8/D8)-1) -> 0.1349736727 | G8: =empresa_ccaa!K12 -> 0 | H8: =empresa_ccaa!L12 -> 0 | I8: =IF(G8>0,((H8/G8)-1),"n.a.") -> n.a. | J8: =G8/D8 -> 0 | K8: =H8/E8 -> 0 | L8: =(K8-J8)*100 -> 0 | N8: =((E8-H8)/(D8-G8))-1 -> 0.1349736727 | O8: =(F8-N8)*100 -> 0 | GA8: =IF(I8="n.a.","n.a.",(I8-F8)*100) -> n.a. | GB8: =empresa_ccaa!M12-empresa_ccaa!H12 ->  | GD8: criterio_rank | GE8: peso | GF8: Comunidad | GG8: % i.a. | GH8: Total_Regional
C9: ANDALUCIA | D9: =empresa_ccaa!F13 -> 73703041.16 | E9: =empresa_ccaa!G13 -> 82079438.09 | F9: =((E9/D9)-1) -> 0.1136506282 | G9: =empresa_ccaa!K13 -> 0 | H9: =empresa_ccaa!L13 -> 0 | I9: n.a. | J9: 0 | K9: 0 | L9: =(K9-J9)*100 -> 0 | N9: =((E9-H9)/(D9-G9))-1 -> 0.1136506282 | O9: 0 | GA9: n.a. | GB9: =empresa_ccaa!M13-empresa_ccaa!H13 ->  | GD9: =IF(GE9=$GE$27,1,0) -> 1 | GE9: =K9 -> 0 | GF9: =C9 -> ANDALUCIA | GG9: =I9 -> n.a. | GH9: =F9 -> 0.1136506282
C10: ARAGON | D10: =empresa_ccaa!F14 -> 43050366.54 | E10: =empresa_ccaa!G14 -> 47002766.64 | F10: =((E10/D10)-1) -> 0.0918087445 | G10: =empresa_ccaa!K14 -> 0 | H10: =empresa_ccaa!L14 -> 0 | I10: n.a. | J10: 0 | K10: 0 | L10: 0 | N10: 0.0918087445 | O10: 0 | GA10: n.a. | GB10: =empresa_ccaa!M14-empresa_ccaa!H14 ->  | GD10: 1 | GE10: 0 | GF10: ARAGON | GG10: n.a. | GH10: 0.0918087445
C11: ASTURIAS | D11: =empresa_ccaa!F15 -> 15850859.87 | E11: =empresa_ccaa!G15 -> 18127358.76 | F11: 0.143619899 | G11: =empresa_ccaa!K15 -> 0 | H11: =empresa_ccaa!L15 -> 0 | I11: n.a. | J11: 0 | K11: 0 | L11: 0 | N11: 0.143619899 | O11: 0 | GA11: n.a. | GB11: =empresa_ccaa!M15-empresa_ccaa!H15 ->  | GD11: 1 | GE11: 0 | GF11: ASTURIAS | GG11: n.a. | GH11: 0.143619899
C12: BALEARES | D12: =empresa_ccaa!F16 -> 2727610.856 | E12: =empresa_ccaa!G16 -> 2926172.685 | F12: 0.07279697871 | G12: =empresa_ccaa!K16 -> 0 | H12: =empresa_ccaa!L16 -> 0 | I12: n.a. | J12: 0 | K12: 0 | L12: 0 | N12: 0.07279697871 | O12: 0 | GA12: n.a. | GB12: =empresa_ccaa!M16-empresa_ccaa!H16 ->  | GD12: 1 | GE12: 0 | GF12: BALEARES | GG12: n.a. | GH12: 0.07279697871
C13: CANARIAS | D13: =empresa_ccaa!F17 -> 21667923.64 | E13: =empresa_ccaa!G17 -> 23094788.46 | F13: 0.06585147912 | G13: =empresa_ccaa!K17 -> 0 | H13: =empresa_ccaa!L17 -> 0 | I13: n.a. | J13: 0 | K13: 0 | L13: 0 | N13: 0.06585147912 | O13: 0 | GA13: n.a. | GB13: =empresa_ccaa!M17-empresa_ccaa!H17 ->  | GD13: 1 | GE13: 0 | GF13: CANARIAS | GG13: n.a. | GH13: 0.06585147912
C14: CANTABRIA | D14: =empresa_ccaa!F18 -> 17936159.87 | E14: =empresa_ccaa!G18 -> 23002530.19 | F14: 0.2824668358 | G14: =empresa_ccaa!K18 -> 0 | H14: =empresa_ccaa!L18 -> 0 | I14: n.a. | J14: 0 | K14: 0 | L14: 0 | N14: 0.2824668358 | O14: 0 | GA14: n.a. | GB14: =empresa_ccaa!M18-empresa_ccaa!H18 ->  | GD14: 1 | GE14: 0 | GF14: CANTABRIA | GG14: n.a. | GH14: 0.2824668358
C15: CASTILLA-LA MANCHA | D15: =empresa_ccaa!F19 -> 33666537.4 | E15: =empresa_ccaa!G19 -> 39736434.55 | F15: 0.1802946671 | G15: =empresa_ccaa!K19 -> 0 | H15: =empresa_ccaa!L19 -> 0 | I15: n.a. | J15: 0 | K15: 0 | L15: 0 | N15: 0.1802946671 | O15: 0 | GA15: n.a. | GB15: =empresa_ccaa!M19-empresa_ccaa!H19 ->  | GD15: 1 | GE15: 0 | GF15: CASTILLA-LA MANCHA | GG15: n.a. | GH15: 0.1802946671
C16: CASTILLA Y LEÓN | D16: =empresa_ccaa!F20 -> 55398421.68 | E16: =empresa_ccaa!G20 -> 61388629.01 | F16: 0.1081295666 | G16: =empresa_ccaa!K20 -> 0 | H16: =empresa_ccaa!L20 -> 0 | I16: n.a. | J16: 0 | K16: 0 | L16: =(K16-J16)*100 -> 0 | N16: 0.1081295666 | O16: 0 | GA16: n.a. | GB16: =empresa_ccaa!M20-empresa_ccaa!H20 ->  | GD16: 1 | GE16: 0 | GF16: CASTILLA Y LEÓN | GG16: n.a. | GH16: 0.1081295666
C17: CATALUÑA | D17: =empresa_ccaa!F21 -> 200072193 | E17: =empresa_ccaa!G21 -> 239769334.3 | F17: 0.1984140859 | G17: =empresa_ccaa!K21 -> 0 | H17: =empresa_ccaa!L21 -> 0 | I17: =IF(G17>0,((H17/G17)-1),"n.a.") -> n.a. | J17: 0 | K17: 0 | L17: =(K17-J17)*100 -> 0 | N17: 0.1984140859 | O17: 0 | GA17: n.a. | GB17: =empresa_ccaa!M21-empresa_ccaa!H21 ->  | GD17: 1 | GE17: 0 | GF17: CATALUÑA | GG17: n.a. | GH17: 0.1984140859
C18: COMUNIDAD VALENCIANA | D18: =empresa_ccaa!F22 -> 59554704.72 | E18: =empresa_ccaa!G22 -> 64506335.71 | F18: 0.08314424545 | G18: =empresa_ccaa!K22 -> 0 | H18: =empresa_ccaa!L22 -> 0 | I18: n.a. | J18: 0 | K18: 0 | L18: =(K18-J18)*100 -> 0 | N18: 0.08314424545 | O18: 0 | GA18: n.a. | GB18: =empresa_ccaa!M22-empresa_ccaa!H22 ->  | GD18: 1 | GE18: 0 | GF18: COMUNIDAD VALENCIANA | GG18: n.a. | GH18: 0.08314424545
C19: EXTREMADURA | D19: =empresa_ccaa!F23 -> 3632274.451 | E19: =empresa_ccaa!G23 -> 5177191.35 | F19: 0.4253304421 | G19: =empresa_ccaa!K23 -> 0 | H19: =empresa_ccaa!L23 -> 0 | I19: n.a. | J19: 0 | K19: 0 | L19: 0 | N19: 0.4253304421 | O19: 0 | GA19: n.a. | GB19: =empresa_ccaa!M23-empresa_ccaa!H23 ->  | GD19: 1 | GE19: 0 | GF19: EXTREMADURA | GG19: n.a. | GH19: 0.4253304421
C20: GALICIA | D20: =empresa_ccaa!F24 -> 40383491.85 | E20: =empresa_ccaa!G24 -> 48058215.39 | F20: 0.1900460607 | G20: =empresa_ccaa!K24 -> 0 | H20: =empresa_ccaa!L24 -> 0 | I20: n.a. | J20: 0 | K20: 0 | L20: 0 | N20: 0.1900460607 | O20: 0 | GA20: n.a. | GB20: =empresa_ccaa!M24-empresa_ccaa!H24 ->  | GD20: 1 | GE20: 0 | GF20: GALICIA | GG20: n.a. | GH20: 0.1900460607
C21: MADRID | D21: =empresa_ccaa!F25 -> 130062994.3 | E21: =empresa_ccaa!G25 -> 140826986.7 | F21: 0.08275983886 | G21: =empresa_ccaa!K25 -> 0 | H21: =empresa_ccaa!L25 -> 0 | I21: n.a. | J21: 0 | K21: 0 | L21: 0 | N21: 0.08275983886 | O21: 0 | GA21: n.a. | GB21: =empresa_ccaa!M25-empresa_ccaa!H25 ->  | GD21: 1 | GE21: 0 | GF21: MADRID | GG21: n.a. | GH21: 0.08275983886
C22: MURCIA | D22: =empresa_ccaa!F26 -> 34701062.2 | E22: =empresa_ccaa!G26 -> 38783674.03 | F22: 0.1176509183 | G22: =empresa_ccaa!K26 -> 0 | H22: =empresa_ccaa!L26 -> 0 | I22: n.a. | J22: 0 | K22: 0 | L22: 0 | N22: 0.1176509183 | O22: 0 | GA22: n.a. | GB22: =empresa_ccaa!M26-empresa_ccaa!H26 ->  | GD22: 1 | GE22: 0 | GF22: MURCIA | GG22: n.a. | GH22: 0.1176509183
C23: NAVARRA | D23: =empresa_ccaa!F27 -> 26394941.84 | E23: =empresa_ccaa!G27 -> 33431799.62 | F23: 0.2665987224 | G23: =empresa_ccaa!K27 -> 0 | H23: =empresa_ccaa!L27 -> 0 | I23: n.a. | J23: 0 | K23: 0 | L23: 0 | N23: 0.2665987224 | O23: 0 | GA23: n.a. | GB23: =empresa_ccaa!M27-empresa_ccaa!H27 ->  | GD23: 1 | GE23: 0 | GF23: NAVARRA | GG23: n.a. | GH23: 0.2665987224
C24: PAIS VASCO | D24: =empresa_ccaa!F28 -> 44159141.31 | E24: =empresa_ccaa!G28 -> 44816567.86 | F24: 0.01488766592 | G24: =empresa_ccaa!K28 -> 0 | H24: =empresa_ccaa!L28 -> 0 | I24: n.a. | J24: 0 | K24: 0 | L24: 0 | N24: 0.01488766592 | O24: 0 | GA24: n.a. | GB24: =empresa_ccaa!M28-empresa_ccaa!H28 ->  | GD24: 1 | GE24: 0 | GF24: PAIS VASCO | GG24: n.a. | GH24: 0.01488766592
C25: RIOJA (LA) | D25: =empresa_ccaa!F29 -> 7244837.841 | E25: =empresa_ccaa!G29 -> 6834894.561 | F25: -0.0565841899 | G25: =empresa_ccaa!K29 -> 0 | H25: =empresa_ccaa!L29 -> 0 | I25: n.a. | J25: 0 | K25: 0 | L25: 0 | N25: -0.0565841899 | O25: 0 | GA25: n.a. | GB25: =empresa_ccaa!M29-empresa_ccaa!H29 ->  | GD25: 1 | GE25: 0 | GF25: RIOJA (LA) | GG25: n.a. | GH25: -0.0565841899
GD26: codifico=1 | GE26: máximo
GD27: =DMAX(GD8:GF25,GE8,GD8:GD25)*1 -> 0 | GE27: =MAX(GE9:GE25) -> 0
L28: =K6 -> Cuota de Facturación | GC28: geo data | GD28: =VLOOKUP(1,GD8:GH25,3,0) -> ANDALUCIA
O29: =K7 -> 2018 | GD29: el dato a buscar debe estar en la primera columna.
D30: % i.a. | H30: % i.a. | GD30: =VLOOKUP(1,GD8:GH25,4,0)*1 -> 
D31: 2017 | H31: 2017 | GD31: =VLOOKUP(1,GD8:GH25,5,0)*1 -> 0.1136506282
D32: Total | H32: Empresa | L32: =L5 -> iEMPRESA
O33: Ámbito
C34: Ámbito | D34: =H34 -> Nacional | H34: =L34 -> Nacional | L34: Nacional | O34: Nacional
L38: =GD28 -> ANDALUCIA | O38: CCAA
O39: Líder para la
D40: % i.a. | H40: % i.a. | O40: Empresa
D41: 2017 | H41: 2017
D42: Total | H42: Empresa | L42: =L32 -> iEMPRESA
C44: Ámbito | D44: =H44 -> ANDALUCIA | H44: =L44 -> ANDALUCIA | L44: =L38 -> ANDALUCIA
C48: Fuente: Cifras consolidadas del sector. Valores absolutos 2015-2018 y cifras de evolución de 2016 a la fecha. ASEMPLEO ©.
C49: Nota de Confidencialidad: Este informe comparativo contiene datos redondeados que son ficticeos y serán reemplazados por los que la Empresa introduzca en "empresa_ccaa".

Sheet Ayuda y Version (hidden)
G2: Versión de plantilla: | H2: 2.5

Sheet pBlock (hidden)
B4: Block Test
B5: Info1 | C5: Info2

Sheet pAccel0 (hidden)
A1: Gauge Configuration | O1: Gauge Configuration | Z1: Gauge Configuration | AK1: Gauge Configuration
F2: Decal | T2: Decal | AE2: Decal | AP2: Decal
A3: Title: | B3: =Dashboard!#REF! ->  | F3: 0 | O3: Title: | P3: =pAccel0!B3 ->  | T3: 0 | Z3: Title: | AA3: Empresa | AE3: 0 | AK3: Title: | AL3: CCAA | AP3: 0
A4: Real Value: | B4: =Dashboard!#REF! ->  | O4: Real Value: | P4: =Dashboard!K8 -> 0 | Z4: Real Value: | AA4: =Dashboard!K8 -> 0 | AK4: Real Value: | AL4: =Dashboard!GD27 -> 0
A6: Color bands | O6: Color bands | Z6: Color bands | AK6: Color bands
A7: Red: | B7: 2 | O7: Red: | P7: 2 | Z7: Red: | AA7: 2 | AK7: Red: | AL7: 2
A8: Yellow: | B8: 15 | O8: Yellow: | P8: 15 | Z8: Yellow: | AA8: 15 | AK8: Yellow: | AL8: 15
A9: Green: | B9: 23 | O9: Green: | P9: 23 | Z9: Green: | AA9: 23 | AK9: Green: | AL9: 23
A11: Advanced Parameters | O11: Advanced Parameters | Z11: Advanced Parameters | AK11: Advanced Parameters
B12: Value to 100% | C12: =IF(ISERROR((B4-F3/100)*B27),0,(B4-F3/100)*B27) -> 0 | P12: Value to 100% | Q12: =IF(ISERROR((P4-T3/100)*P27),0,(P4-T3/100)*P27) -> 0 | AA12: Value to 100% | AB12: =IF(ISERROR((AA4-AE3/100)*AA27),0,(AA4-AE3/100)*AA27) -> 0 | AL12: Value to 100% | AM12: =IF(ISERROR((AL4-AP3/100)*AL27),0,(AL4-AP3/100)*AL27) -> 0
B13: Relative value | C13: =IF(C12>100%,102%,IF(C12<0%,-2%,C12))*1.506-0.253 -> -0.253 | P13: Relative value | Q13: =IF(Q12>100%,102%,IF(Q12<0%,-2%,Q12))*1.506-0.253 -> -0.253 | AA13: Relative value | AB13: =IF(AB12>100%,102%,IF(AB12<0%,-2%,AB12))*1.506-0.253 -> -0.253 | AL13: Relative value | AM13: =IF(AM12>100%,102%,IF(AM12<0%,-2%,AM12))*1.506-0.253 -> -0.253
A15: Angle | C15: =C13*PI() -> -0.7948229414 | O15: Angle | Q15: =Q13*PI() -> -0.7948229414 | Z15: Angle | AB15: =AB13*PI() -> -0.7948229414 | AK15: Angle | AM15: =AM13*PI() -> -0.7948229414
A16: x | B16: 0 | C16: =-COS(C15) -> -0.7004111508 | O16: x | P16: 0 | Q16: =-COS(Q15) -> -0.7004111508 | Z16: x | AA16: 0 | AB16: =-COS(AB15) -> -0.7004111508 | AK16: x | AL16: 0 | AM16: =-COS(AM15) -> -0.7004111508
A17: y | B17: 0 | C17: =SIN(C15) -> -0.7137396023 | O17: y | P17: 0 | Q17: =SIN(Q15) -> -0.7137396023 | Z17: y | AA17: 0 | AB17: =SIN(AB15) -> -0.7137396023 | AK17: y | AL17: 0 | AM17: =SIN(AM15) -> -0.7137396023
D19: Value | E19: Label | R19: Value | S19: Label | AC19: Value | AD19: Label | AN19: Value | AO19: Label
C20: 70 | D20: 10 | E20: =B26+F3 -> 4 | Q20: 70 | R20: 10 | S20: =P26+T3 -> 4 | AB20: 70 | AC20: 10 | AD20: =AA26+AE3 -> 4 | AM20: 70 | AN20: 10 | AO20: =AL26+AP3 -> 4
C21: =B7*$C$20/$B$25 -> 3.5 | D21: 10 | E21: =E20+$B$26 -> 8 | Q21: =P7*$C$20/$B$25 -> 3.5 | R21: 10 | S21: =S20+$B$26 -> 8 | AB21: =AA7*$AB$20/$AA$25 -> 3.5 | AC21: 10 | AD21: =AD20+$AA$26 -> 8 | AM21: =AL7*$AM$20/$AL$25 -> 3.5 | AN21: 10 | AO21: =AO20+$AL$26 -> 8
C22: =B8*$C$20/$B$25 -> 26.25 | D22: 10 | E22: 12 | Q22: =P8*$C$20/$B$25 -> 26.25 | R22: 10 | S22: 12 | AB22: =AA8*$AB$20/$AA$25 -> 26.25 | AC22: 10 | AD22: 12 | AM22: =AL8*$AM$20/$AL$25 -> 26.25 | AN22: 10 | AO22: =AO21+$AL$26 -> 12
C23: =B9*$C$20/$B$25 -> 40.25 | D23: 10 | E23: 16 | Q23: =P9*$C$20/$B$25 -> 40.25 | R23: 10 | S23: 16 | AB23: =AA9*$AB$20/$AA$25 -> 40.25 | AC23: 10 | AD23: 16 | AM23: 40.25 | AN23: 10 | AO23: 16
A24: White | C24: 23 | D24: 10 | E24: 20 | O24: White | Q24: 23 | R24: 10 | S24: 20 | Z24: White | AB24: 23 | AC24: 10 | AD24: 20 | AK24: White | AM24: 23 | AN24: 10 | AO24: 20
A25: Total | B25: =SUM(B7:B24) -> 40 | C25: =SUM(C21:C24) -> 93 | D25: 10 | E25: 24 | O25: Total | P25: =SUM(P7:P24) -> 40 | Q25: =SUM(Q21:Q24) -> 93 | R25: 10 | S25: 24 | Z25: Total | AA25: =SUM(AA7:AA24) -> 40 | AB25: =SUM(AB21:AB24) -> 93 | AC25: 10 | AD25: 24 | AK25: Total | AL25: =SUM(AL7:AL24) -> 40 | AM25: =SUM(AM21:AM24) -> 93 | AN25: 10 | AO25: 24
A26: Increment | B26: =B25/10 -> 4 | D26: 10 | E26: 28 | O26: Increment | P26: =P25/10 -> 4 | R26: 10 | S26: 28 | Z26: Increment | AA26: =AA25/10 -> 4 | AC26: 10 | AD26: 28 | AK26: Increment | AL26: =AL25/10 -> 4 | AN26: 10 | AO26: 28
A27: Conversion | B27: =100/B25 -> 2.5 | D27: 10 | E27: 32 | O27: Conversion | P27: =100/P25 -> 2.5 | R27: 10 | S27: 32 | Z27: Conversion | AA27: =100/AA25 -> 2.5 | AC27: 10 | AD27: 32 | AK27: Conversion | AL27: =100/AL25 -> 2.5 | AN27: 10 | AO27: 32
D28: 10 | E28: 36 | R28: 10 | S28: 36 | AC28: 10 | AD28: 36 | AN28: 10 | AO28: 36
D29: 10 | E29: 40 | R29: 10 | S29: 40 | AC29: 10 | AD29: 40 | AN29: 10 | AO29: 40
D30: 33 | E30: =F3 -> 0 | R30: 33 | S30: =T3 -> 0 | AC30: 33 | AD30: =AE3 -> 0 | AN30: 33 | AO30: =AP3 -> 0

Sheet pAccel1 (hidden)
A1: Gauge Configuration | Q1: Gauge Configuration | X1: Gauge Configuration | AE1: Gauge Configuration | AL1: Gauge Configuration | AS1: Gauge Configuration | AZ1: Gauge Configuration | BG1: Gauge Configuration
F2: Decal | V2: Decal | AC2: Decal | AJ2: Decal | AQ2: Decal | AX2: Decal | BE2: Decal | BL2: Decal
A3: Title: | B3: CPDs | F3: 100 | Q3: Title: | R3: Facturación | V3: 100 | X3: Title: | Y3: CPDs | AC3: 100 | AE3: Title: | AF3: Facturación | AJ3: 100 | AL3: Title: | AM3: Facturación | AQ3: 100 | AS3: Title: | AT3: Facturación | AX3: 100 | AZ3: Title: | BA3: Facturación | BE3: 100 | BG3: Title: | BH3: Facturación | BL3: 100
A4: Real Value: | B4: =Dashboard!#REF! ->  | C4: =Dashboard!#REF! ->  | Q4: Real Value: | R4: =Dashboard!#REF! ->  | X4: Real Value: | Y4: =Dashboard!#REF! ->  | AE4: Real Value: | AF4: =Dashboard!#REF! ->  | AL4: Real Value: | AM4: =Dashboard!F8 -> 0.1349736727 | AS4: Real Value: | AT4: =Dashboard!$I$8 -> n.a. | AZ4: Real Value: | BA4: =Dashboard!GD31 -> 0.1136506282 | BG4: Real Value: | BH4: =Dashboard!GD30 -> 
A6: Color bands
A7: Red: | B7: -50
A8: Yellow: | B8: 0
A9: Green: | B9: 50
A11: Advanced Parameters | Q11: Advanced Parameters | X11: Advanced Parameters | AE11: Advanced Parameters | AL11: Advanced Parameters | AS11: Advanced Parameters | AZ11: Advanced Parameters | BG11: Advanced Parameters
B12: Value to 100% | C12: =IF(ISERROR((B4-F3/100)*B27),0,(B4-F3/100)*B27) -> 0 | E12: =IF(ISERROR((C4-F3/100)*B27),0,(C4-F3/100)*B27) -> 0 | R12: Value to 100% | S12: =IF(ISERROR((R4-V3/100)*R27),0,(R4-V3/100)*R27) -> 0 | Y12: Value to 100% | Z12: =IF(ISERROR((Y4-AC3/100)*Y27),0,(Y4-AC3/100)*Y27) -> 0 | AF12: Value to 100% | AG12: =IF(ISERROR((AF4-AJ3/100)*AF27),0,(AF4-AJ3/100)*AF27) -> 0 | AM12: Value to 100% | AN12: =IF(ISERROR((AM4-AQ3/100)*AM27),0,(AM4-AQ3/100)*AM27) -> -1.730052655 | AT12: Value to 100% | AU12: =IF(ISERROR((AT4-AX3/100)*AT27),0,(AT4-AX3/100)*AT27) -> 0 | BA12: Value to 100% | BB12: =IF(ISERROR((BA4-BE3/100)*BA27),0,(BA4-BE3/100)*BA27) -> -1.772698744 | BH12: Value to 100% | BI12: =IF(ISERROR((BH4-BL3/100)*BH27),0,(BH4-BL3/100)*BH27) -> 0
B13: Relative value | C13: =IF(B4<-100%,-100%,IF(B4>100%,100%,2*B4/1)) ->  | D13: ojo1, todo en porcentaje, por 2, y con 1 al final en lugar de 100. | E13: =IF(C4<-100%,-100%,IF(C4>100%,100%,2*C4/1)) ->  | I13: Todos los negritas tienen dato 50, en lugar de 100 para que la escala recorra menos. | R13: Relative value | S13: =IF(R4<-100%,-100%,IF(R4>100%,100%,2*R4/1)) ->  | Y13: Relative value | Z13: =IF(Y4<-100%,-100%,IF(Y4>100%,100%,2*Y4/1)) ->  | AF13: Relative value | AG13: =IF(AF4<-100%,-100%,IF(AF4>100%,100%,2*AF4/1)) ->  | AM13: Relative value | AN13: =IF(AM4<-100%,-100%,IF(AM4>100%,100%,2*AM4/1)) -> 0.2699473455 | AT13: Relative value | AU13: =IF(AT4<-100%,-100%,IF(AT4>100%,100%,2*AT4/1)) -> 1 | BA13: Relative value | BB13: =IF(BA4<-100%,-100%,IF(BA4>100%,100%,2*BA4/1)) -> 0.2273012564 | BH13: Relative value | BI13: =IF(BH4<-100%,-100%,IF(BH4>100%,100%,2*BH4/1)) -> 
A15: Angle | C15: =C13*PI()/2 ->  | E15: =E13*PI()/2 ->  | Q15: Angle | S15: =S13*PI()/2 ->  | X15: Angle | Z15: =Z13*PI()/2 ->  | AE15: Angle | AG15: =AG13*PI()/2 ->  | AL15: Angle | AN15: =AN13*PI()/2 -> 0.4240322987 | AS15: Angle | AU15: =AU13*PI()/2 -> 1.570796327 | AZ15: Angle | BB15: =BB13*PI()/2 -> 0.3570439787 | BG15: Angle | BI15: =BI13*PI()/2 -> 
A16: x | B16: 0 | C16: =SIN(C15) ->  | D16: =B16 -> 0 | E16: =SIN(E15) ->  | Q16: x | R16: 0 | S16: =SIN(S15) ->  | X16: x | Y16: 0 | Z16: =SIN(Z15) ->  | AE16: x | AF16: 0 | AG16: =SIN(AG15) ->  | AL16: x | AM16: 0 | AN16: =SIN(AN15) -> 0.4114389755 | AS16: x | AT16: 0 | AU16: =SIN(AU15) -> 1 | AZ16: x | BA16: 0 | BB16: =SIN(BB15) -> 0.3495061673 | BG16: x | BH16: 0 | BI16: =SIN(BI15) -> 
A17: y | B17: 0 | C17: =-COS(C15) ->  | D17: =B17 -> 0 | E17: =-COS(E15) ->  | Q17: y | R17: 0 | S17: =-COS(S15) ->  | X17: y | Y17: 0 | Z17: =-COS(Z15) ->  | AE17: y | AF17: 0 | AG17: =-COS(AG15) ->  | AL17: y | AM17: 0 | AN17: =-COS(AN15) -> -0.9114373097 | AS17: y | AT17: 0 | AU17: =-COS(AU15) -> -6.125742275e-17 | AZ17: y | BA17: 0 | BB17: =-COS(BB15) -> -0.9369340633 | BG17: y | BH17: 0 | BI17: =-COS(BI15) -> 
D19: Value | E19: Label
C20: 50 | D20: 0 | E20: 50
C21: =E21 -> 40 | D21: =D31/D33 -> 5 | E21: =E20+$B$26 -> 40
C22: =E22 -> 30 | D22: =D21 -> 5 | E22: =E21+$B$26 -> 30
C23: 20 | D23: =D22 -> 5 | E23: 20
A24: White | C24: 10 | D24: 5 | E24: 10 | Q24: White | X24: White | AE24: White | AL24: White | AS24: White | AZ24: White | BG24: White
A25: Total | B25: 50 | C25: 0 | D25: 5 | E25: 0 | Q25: Total | R25: 50 | X25: Total | Y25: 50 | AE25: Total | AF25: 50 | AL25: Total | AM25: 50 | AS25: Total | AT25: 50 | AZ25: Total | BA25: 50 | BG25: Total | BH25: 50
A26: Increment | B26: -10 | C26: -10 | D26: 5 | E26: -10 | Q26: Increment | R26: -10 | X26: Increment | Y26: -10 | AE26: Increment | AF26: -10 | AL26: Increment | AM26: -10 | AS26: Increment | AT26: -10 | AZ26: Increment | BA26: -10 | BG26: Increment | BH26: -10
A27: Conversion | B27: =100/B25 -> 2 | C27: -20 | D27: 5 | E27: -20 | Q27: Conversion | R27: =100/R25 -> 2 | X27: Conversion | Y27: =100/Y25 -> 2 | AE27: Conversion | AF27: =100/AF25 -> 2 | AL27: Conversion | AM27: =100/AM25 -> 2 | AS27: Conversion | AT27: =100/AT25 -> 2 | AZ27: Conversion | BA27: =100/BA25 -> 2 | BG27: Conversion | BH27: =100/BH25 -> 2
C28: -30 | D28: 5 | E28: -30
C29: -40 | D29: 5 | E29: -40
C30: -50 | D30: 5 | E30: -50
D31: 50
D33: 10
D35: =SUM(D20:D30) -> 50

Sheet empresa_ccaa
M3: =Dashboard!O3 -> 2018
M4: =Dashboard!O4 -> MARZO
K5: Empresa | L5: =L9 -> iEMPRESA
C9: Facturación, € | F9: ASEMPLEO | G9: ASEMPLEO | K9: Empresa = | L9: iEMPRESA
C10: Dato acumulado a | E10: =M4 -> MARZO | F10: =Dashboard!D7 -> 2017 | G10: =Dashboard!E7 -> 2018 | J10: Facturación | K10: =F10 -> 2017 | L10: =G10 -> 2018
H11: Estructura (%) | J11: Datos acumulados | M11: Estructura (%) | N11: check
F12: =E202 -> 810206562.5 | G12: =B202 -> 919563117.9 | H12: =G12/G$12 -> 1 | I12: TOTAL | K12: =SUM(K13:K29) -> 0 | L12: =SUM(L13:L29) -> 0 | M12: =L12/L$12 ->  | N12: =L12/K12-1 -> 
F13: 73703041.16 | G13: 82079438.09 | H13: =G13/G$12 -> 0.0892591672 | I13: ANDALUCIA | M13: =L13/L$12 -> 
F14: 43050366.54 | G14: 47002766.64 | H14: =G14/G$12 -> 0.05111423645 | I14: ARAGON | M14: =L14/L$12 -> 
F15: 15850859.87 | G15: 18127358.76 | H15: 0.01971301198 | I15: ASTURIAS
F16: 2727610.856 | G16: 2926172.685 | H16: 0.00318213359 | I16: BALEARES
F17: 21667923.64 | G17: 23094788.46 | H17: 0.02511495732 | I17: CANARIAS
F18: 17936159.87 | G18: 23002530.19 | H18: 0.02501462896 | I18: CANTABRIA
F19: 33666537.4 | G19: 39736434.55 | H19: 0.04321229699 | I19: CASTILLA-LA MANCHA
F20: 55398421.68 | G20: 61388629.01 | H20: 0.06675847238 | I20: CASTILLA Y LEÓN
F21: 200072193 | G21: 239769334.3 | H21: 0.260742661 | I21: CATALUÑA | M21: =L21/L$12 -> 
F22: 59554704.72 | G22: 64506335.71 | H22: 0.07014889402 | I22: COMUNIDAD VALENCIANA
F23: 3632274.451 | G23: 5177191.35 | H23: 0.005630055457 | I23: EXTREMADURA
F24: 40383491.85 | G24: 48058215.39 | H24: 0.0522620084 | I24: GALICIA
F25: 130062994.3 | G25: 140826986.7 | H25: 0.1531455361 | I25: MADRID
F26: 34701062.2 | G26: 38783674.03 | H26: 0.04217619571 | I26: MURCIA
F27: 26394941.84 | G27: 33431799.62 | H27: 0.03635617715 | I27: NAVARRA
F28: 44159141.31 | G28: 44816567.86 | H28: 0.04873680445 | I28: PAIS VASCO
F29: 7244837.841 | G29: 6834894.561 | H29: 0.007432762828 | I29: RIOJA (LA)
A31: Fuente: Cifras consolidadas del sector. ASEMPLEO ©.
A32: Nota de Confidencialidad: Este informe comparativo se genera con los datos propios de la Empresa.
A197: D03: | D197: D03: | G197: D03 : | H197: Variación Interanual (%)
A198: MES: | B198: ACUMULADO A LA FECHA | D198: =A198 -> MES: | E198: =B198 -> ACUMULADO A LA FECHA | G198: =D198 -> MES: | H198: Tasa % i.a.
B200: Facturación | E200: Facturación | H200: Facturación
I201: check
A202: TOTAL | B202: 919563117.9 | D202: TOTAL | E202: 810206562.5 | G202: TOTAL | H202: 0.1349736727 | I202: =B202/E202-1 -> 0.1349736727
A203: ANDALUCIA | B203: 82079438.09 | D203: ANDALUCIA | E203: 73703041.16 | G203: ANDALUCIA | H203: 0.1136506282 | I203: =B203/E203-1 -> 0.1136506282
A204: ARAGON | B204: 47002766.64 | D204: ARAGON | E204: 43050366.54 | G204: ARAGON | H204: 0.0918087445 | I204: 0.0918087445
A205: ASTURIAS | B205: 18127358.76 | D205: ASTURIAS | E205: 15850859.87 | G205: ASTURIAS | H205: 0.143619899 | I205: 0.143619899
A206: BALEARES | B206: 2926172.685 | D206: BALEARES | E206: 2727610.856 | G206: BALEARES | H206: 0.07279697871 | I206: 0.07279697871
A207: CANARIAS | B207: 23094788.46 | D207: CANARIAS | E207: 21667923.64 | G207: CANARIAS | H207: 0.06585147912 | I207: 0.06585147912
A208: CANTABRIA | B208: 23002530.19 | D208: CANTABRIA | E208: 17936159.87 | G208: CANTABRIA | H208: 0.2824668358 | I208: 0.2824668358
A209: CASTILLA-LA MANCHA | B209: 39736434.55 | D209: CASTILLA-LA MANCHA | E209: 33666537.4 | G209: CASTILLA-LA MANCHA | H209: 0.1802946671 | I209: 0.1802946671
A210: CASTILLA Y LEÓN | B210: 61388629.01 | D210: CASTILLA Y LEÓN | E210: 55398421.68 | G210: CASTILLA Y LEÓN | H210: 0.1081295666 | I210: 0.1081295666
A211: CATALUÑA | B211: 239769334.3 | D211: CATALUÑA | E211: 200072193 | G211: CATALUÑA | H211: 0.1984140859 | I211: 0.1984140859
A212: COMUNIDAD VALENCIANA | B212: 64506335.71 | D212: COMUNIDAD VALENCIANA | E212: 59554704.72 | G212: COMUNIDAD VALENCIANA | H212: 0.08314424545 | I212: 0.08314424545
A213: EXTREMADURA | B213: 5177191.35 | D213: EXTREMADURA | E213: 3632274.451 | G213: EXTREMADURA | H213: 0.4253304421 | I213: 0.4253304421
A214: GALICIA | B214: 48058215.39 | D214: GALICIA | E214: 40383491.85 | G214: GALICIA | H214: 0.1900460607 | I214: 0.1900460607
A215: MADRID | B215: 140826986.7 | D215: MADRID | E215: 130062994.3 | G215: MADRID | H215: 0.08275983886 | I215: 0.08275983886
A216: MURCIA | B216: 38783674.03 | D216: MURCIA | E216: 34701062.2 | G216: MURCIA | H216: 0.1176509183 | I216: 0.1176509183
A217: NAVARRA | B217: 33431799.62 | D217: NAVARRA | E217: 26394941.84 | G217: NAVARRA | H217: 0.2665987224 | I217: 0.2665987224
A218: PAIS VASCO | B218: 44816567.86 | D218: PAIS VASCO | E218: 44159141.31 | G218: PAIS VASCO | H218: 0.01488766592 | I218: 0.01488766592
A219: RIOJA (LA) | B219: 6834894.561 | D219: RIOJA (LA) | E219: 7244837.841 | G219: RIOJA (LA) | H219: -0.0565841899 | I219: =B219/E219-1 -> -0.0565841899
A220: Ceuta y Melilla | D220: Ceuta y Melilla | G220: Ceuta y Melilla
